{"text_format":"1","workbook":"xlsx","n_sheets":5,"sheets":["（作成要領）","表紙－入力","内訳－入力","表紙－手書き用","内訳－手書き用"],"not_rendered":{"charts":0,"images":1,"macros":0,"external_links":0,"defined_names":0,"comments":0,"pivot_tables":0},"unopened":[],"bounds":{"document_bytes":16777216,"sheet_cells":100000,"rows_first":2000,"rows_last":500,"rows_between":2000,"halvings":0,"cell_chars":16384,"cell_head_chars":4096},"cells_cut":0,"cells_raw":0,"read":"whole","date_system":"1900"}

{"sheet":"（作成要領）","index":0,"n_rows":60,"n_cols":46,"rows_kept":60,"cut":false,"hidden":false,"merged":[[26,0,27,1],[26,3,27,3],[26,4,27,4],[26,5,27,5],[26,6,27,6],[26,7,27,7],[38,24,38,27],[32,0,32,3],[29,0,30,1],[35,2,35,17],[35,18,35,21],[35,22,35,23],[29,2,30,2],[29,3,30,3],[29,4,30,4],[29,5,30,5],[33,0,33,3],[36,18,36,21],[36,22,36,23],[31,20,32,22],[31,23,31,31],[25,11,25,18],[29,6,30,6],[27,30,27,31],[27,33,27,45],[25,27,26,30],[25,31,26,31],[28,20,28,22],[28,23,28,31],[28,33,29,45],[29,23,30,31],[29,9,30,9],[29,20,30,22],[26,34,26,37],[26,38,26,45],[27,20,27,22],[27,23,27,24],[27,25,27,26],[27,28,27,29],[25,20,26,22],[30,33,30,45],[31,33,31,44],[29,8,30,8],[32,4,33,18],[32,23,32,31],[38,18,38,21],[38,22,38,23],[32,36,32,45],[35,28,35,33],[36,40,36,45],[36,24,36,27],[35,24,35,27],[37,18,37,21],[37,22,37,23],[37,24,37,27],[37,35,37,38],[38,35,38,38],[37,28,37,33],[37,40,37,45],[36,35,36,38],[32,33,32,35],[33,33,33,35],[33,37,33,45],[21,1,21,7],[54,27,54,29],[44,0,44,3],[45,0,45,3],[46,0,46,3],[46,21,47,24],[47,0,47,3],[51,28,51,32],[48,0,48,3],[48,21,48,32],[51,21,51,23],[51,0,51,3],[42,0,43,3],[42,11,42,14],[42,15,42,19],[42,21,42,28],[49,0,49,3],[49,21,49,23],[37,2,37,17],[36,2,36,17],[38,28,38,33],[25,26,26,26],[25,23,26,25],[29,7,30,7],[39,40,39,45],[36,28,36,33],[38,40,38,45],[39,24,39,27],[39,28,39,33],[40,28,40,33],[40,40,40,45],[40,2,40,17],[40,18,40,21],[40,22,40,23],[40,24,40,27],[39,22,39,23],[38,2,38,17],[39,2,39,17],[39,18,39,21],[39,34,39,39],[40,35,40,38],[59,3,59,6],[59,7,59,10],[59,12,59,15],[54,43,54,45],[54,40,54,42],[54,4,54,8],[54,10,54,12],[54,14,54,16],[54,18,54,20],[54,30,54,32],[54,37,54,39],[52,0,52,3],[52,11,52,14],[52,21,52,26],[54,0,54,2],[54,21,54,23],[54,24,54,26],[50,0,50,3],[50,21,50,23]]}
[]
[]
[null,null,null,"・「契約用」と「契約外用」の様式がありますので、発注担当者に確認して作成して下さい。"]
[null,null,null,null,null,"（工事請負に関係のないものは、「契約外」です。）"]
[]
[null,null,null,"・太枠での表示内のみに記入して下さい。"]
[]
[]
[null,null,null,"・入力したものを印刷・貴社押印して、提出して下さい。"]
[]
[null,null,null,"　　（手書きでも結構です。『手書き用』を印刷・コピーして作成してください。）"]
[]
[]
[]
[null,null,null,"取引先コード等、不明な点がございましたら、ご連絡下さい。"]
[]
[null,null,null,"　　株式会社　セノオ　　　Ｔｅｌ ： ０８８－６６４－６５５５"]
[]
[]
[]
[]
[null,"入 力 例"]
[]
[null,null,null,"株式会社 セノオ　御中",null,null,null,null,null,null,null,null,null,null,null,null,null,"請　　求　　書",null,null,null,null,null,null,null,null,"（　契 約 外 用　）",null,null,null,null,null,null,null,null,null,null,null,null,null,null,null,null,null,null,"様式2014.04"]
[]
["下記の通り請求致します。",null,null,null,null,null,null,null,null,null,null,"請 求 年 月 日",null,null,null,null,null,null,null,null,"振込口座",null,null,"徳島",null,null,"銀行","渭東",null,null,null,"店",null," 請求者（住所・氏名）"]
["取引先\nコード",null,null,2,3,4,5,6,null,null,null,null,null,null,"年",null,"月",null,"日",null,null,null,null,null,null,null,null,null,null,null,null,null,null,"〒","770-0802"]
[null,null,null,null,null,null,null,null,null,null,null,2,0,1,9,1,1,2,0,null,"種　　別",null,null,"当座",null,"○",null,null,"普通",null,null,null,null,"徳島県徳島市吉野本町６丁目６番地"]
[null,null,null,null,null,null,null,null,null,null,null,"（日付は必ず20日でお願いします）",null,null,null,null,null,null,null,null,"口座番号",null,null,"９９９９９９９",null,null,null,null,null,null,null,null,null,"○○建設株式会社"]
["工事№",null,0,1,"K",0,5,2,"-",1,null,null,null,null,null,null,null,null,null,null,"フリガナ",null,null,"○○ケンセツ（カ　トクシマホンテン"]
[null,null,null,null,null,null,null,null,null,null,null,null,null,null,null,null,null,null,null,null,null,null,null,null,null,null,null,null,null,null,null,null,null,"代表取締役　 ○　○　○　○"]
[null,null,null,null,null,null,null,null,null,null,null,null,null,null,null,null,null,null,null,null,"名　　義",null,null,"○○建設株式会社",null,null,null,null,null,null,null,null,null,null,null,null,null,null,null,null,null,null,null,null,null,"印"]
["工事略称又は",null,null,null,"３１空港護岸Ｋ１",null,null,null,null,null,null,null,null,null,null,null,null,null,null,null,null,null,null,"徳島本店",null,null,null,null,null,null,null,null,null,"電話番号",null,null,"０８８－６２２－２３２３"]
["部門・船舶名",null,null,null,null,null,null,null,null,null,null,null,null,null,null,null,null,null,null,null,null,null,null,null,null,null,null,null,null,null,null,null,null,"登録番号",null,null,"Ｔ",1234567890123]
[]
["月","日","主 要 工 種 ・ 品 名 等",null,null,null,null,null,null,null,null,null,null,null,null,null,null,null,"数　量",null,null,null,"単位",null,"単　価",null,null,null,"金　　額"]
[11,12,"生コンクリート",null,null,null,null,null,null,null,null,null,null,null,null,null,null,null,100000,null,null,null,"m3",null,1000,null,null,null,100000000,null,null,null,null,null,null,"税抜き小計",null,null,null,null,100000000]
[null,null,null,null,null,null,null,null,null,null,null,null,null,null,null,null,null,null,null,null,null,null,null,null,null,null,null,null,0,null,null,null,null,null,null,"値引"]
[null,null,null,null,null,null,null,null,null,null,null,null,null,null,null,null,null,null,null,null,null,null,null,null,null,null,null,null,0,null,null,null,null,null,null,"税抜き額",null,null,null,null,100000000]
[null,null,null,null,null,null,null,null,null,null,null,null,null,null,null,null,null,null,null,null,null,null,null,null,null,null,null,null,0,null,null,null,null,null,"消費税(8%対象)",null,null,null,null,null,8000000]
[null,null,null,null,null,null,null,null,null,null,null,null,null,null,null,null,null,null,null,null,null,null,null,null,null,null,null,null,0,null,null,null,null,null,null,"請求金額",null,null,null,null,108000000]
[]
["勘 定 科 目",null,null,null,null,null,null,null,null,null,null,"立替先名",null,null,null,"立替金(税込)",null,null,null,null,null,"支払年月日",null,null,null,null,null,null,null,null,null,null,null,null,"＜記事＞"]
[null,null,null,null,null,null,null,null,null,null,null,null,null,null,null,null,null,null,null,null,null,null,null,null,"年",null,"月",null,"日"]
["当月請求額",null,null,null,null,null,null,null,null,null,null,null,null,null,null,null,null,null,null,null,null,2,0]
["前月繰越額"]
["合計",null,null,null,null,null,null,null,null,null,null,null,null,null,null,null,null,null,null,null,null,"支払区分"]
["値引"]
["相殺",null,null,null,null,null,null,null,null,null,null,null,null,null,null,null,null,null,null,null,null,"支　　払　　内　　訳"]
["翌月繰越額",null,null,null,null,null,null,null,null,null,null,null,null,null,null,null,null,null,null,null,null,"現　金",null,null,null,null,"％"]
["支払額",null,null,null,null,null,null,null,null,null,null,null,null,null,null,null,null,null,null,null,null,"手　形",null,null,null,null,"％"]
["安全協力費( )",null,null,null,null,null,null,null,null,null,null,null,null,null,null,null,null,null,null,null,null,"サイト",null,null,null,null,"日","期日"," 　年　　月　　日"]
["差引支払額",null,null,null,null,null,null,null,null,null,null,"計",null,null,null,null,null,null,null,null,null,"合　　計"]
[]
["社　長",null,null,null,"役　　員",null,null,null,null,null,"経理部長",null,null,null,"担当役員",null,null,null,"予算管理",null,null,"部門長",null,null,"担当部長",null,null,"担当課長",null,null,"担 当 者",null,null,null,null,null,null,"仕　訳",null,null,"検　算",null,null,"受　付"]
[]
[]
[]
[]
["コード",null,null,"23456",null,null,null,20191120,null,null,null,null,"01K0521"]

{"sheet":"表紙－入力","index":1,"n_rows":37,"n_cols":46,"rows_kept":37,"cut":false,"hidden":false,"merged":[[17,28,17,33],[17,35,17,38],[17,40,17,45],[19,11,19,14],[19,15,19,19],[23,25,24,28],[26,24,26,25],[27,24,27,25],[25,21,25,32],[26,21,26,23],[27,21,27,23],[15,40,15,45],[13,35,13,38],[14,35,14,38],[15,35,15,38],[12,2,12,17],[16,24,16,27],[15,2,15,17],[15,18,15,21],[15,24,15,27],[14,24,14,27],[15,22,15,23],[16,28,16,33],[16,40,16,45],[16,34,16,39],[8,23,8,31],[9,23,9,31],[13,24,13,27],[12,22,12,23],[12,24,12,27],[13,2,13,17],[13,18,13,21],[13,22,13,23],[14,40,14,45],[12,18,12,21],[8,20,9,22],[9,33,9,35],[10,33,10,35],[10,37,10,45],[3,34,3,37],[3,38,3,45],[4,33,4,45],[5,23,5,31],[2,31,3,31],[4,23,4,24],[2,23,3,25],[2,27,3,30],[2,26,3,26],[31,30,31,32],[31,37,31,39],[31,40,31,42],[4,25,4,26],[4,30,4,31],[29,21,29,26],[28,28,28,32],[5,33,6,45],[31,43,31,45],[4,28,4,29],[6,20,7,22],[28,21,28,23],[28,24,28,25],[19,21,19,28],[23,21,24,24],[14,28,14,33],[15,28,15,33],[4,20,4,22],[6,23,7,31],[9,36,9,45],[13,28,13,33],[7,33,7,45],[8,33,8,44],[13,40,13,45],[31,18,31,20],[31,21,31,23],[31,24,31,26],[31,27,31,29],[9,4,10,18],[22,0,22,3],[23,0,23,3],[24,0,24,3],[19,0,20,3],[21,0,21,3],[25,0,25,3],[26,0,26,3],[27,0,27,3],[14,2,14,17],[14,18,14,21],[14,22,14,23],[16,2,16,17],[16,18,16,21],[16,22,16,23],[12,28,12,33],[17,2,17,17],[17,18,17,21],[17,22,17,23],[17,24,17,27],[2,11,2,18],[3,0,4,1],[9,0,9,3],[10,0,10,3],[6,0,7,1],[6,8,7,8],[6,2,7,2],[5,20,5,22],[2,20,3,22],[3,7,4,7],[6,3,7,3],[6,4,7,4],[6,5,7,5],[3,3,4,3],[3,4,4,4],[3,5,4,5],[3,6,4,6],[6,6,7,6],[6,7,7,7],[31,14,31,16],[6,9,7,9],[36,3,36,6],[36,7,36,10],[36,12,36,15],[28,0,28,3],[31,0,31,2],[31,4,31,8],[31,10,31,12],[29,0,29,3],[29,11,29,14],[19,4,20,9],[22,8,22,9],[22,6,22,7]]}
[null,null,null,"株式会社 セノオ　御中",null,null,null,null,null,null,null,null,null,null,null,null,null,"請　　求　　書",null,null,null,null,null,null,null,null,"（　契 約 外 用　）",null,null,null,null,null,null,null,null,null,null,null,null,null,null,null,null,null,null,"様式2014.04"]
[]
["下記の通り請求致します。",null,null,null,null,null,null,null,null,null,null,"請 求 年 月 日",null,null,null,null,null,null,null,null,"振込口座",null,null,null,null,null,"銀行",null,null,null,null,"店",null," 請求者（住所・氏名）"]
["取引先\nコード",null,null,null,null,null,null,null,null,null,null,null,null,null,"年",null,"月",null,"日",null,null,null,null,null,null,null,null,null,null,null,null,null,null,"〒"]
[null,null,null,null,null,null,null,null,null,null,null,2,0,null,null,null,null,null,null,null,"種　　別",null,null,"当座",null,null,null,null,"普通"]
[null,null,null,null,null,null,null,null,null,null,null,"（日付は必ず20日でお願いします）",null,null,null,null,null,null,null,null,"口座番号"]
["工事№",null,null,null,null,null,null,null,"－",null,null,null,null,null,null,null,null,null,null,null,"フリガナ"]
[]
[null,null,null,null,null,null,null,null,null,null,null,null,null,null,null,null,null,null,null,null,"名　　義",null,null,null,null,null,null,null,null,null,null,null,null,null,null,null,null,null,null,null,null,null,null,null,null,"印"]
["工事略称又は",null,null,null,null,null,null,null,null,null,null,null,null,null,null,null,null,null,null,null,null,null,null,null,null,null,null,null,null,null,null,null,null," 電話番号"]
["部門・船舶名",null,null,null,null,null,null,null,null,null,null,null,null,null,null,null,null,null,null,null,null,null,null,null,null,null,null,null,null,null,null,null,null," 登録番号",null,null,"T"]
[]
["月","日","主 要 工 種 ・ 品 名 等",null,null,null,null,null,null,null,null,null,null,null,null,null,null,null,"数　量",null,null,null,"単位",null,"単　価",null,null,null,"金　　額"]
[null,null,null,null,null,null,null,null,null,null,null,null,null,null,null,null,null,null,null,null,null,null,null,null,null,null,null,null,{"$f":"SUM(Y14*S14)","v":0},null,null,null,null,null,null,"税抜き小計",null,null,null,null,{"$f":"SUM(AC14:AH18)","v":0}]
[null,null,null,null,null,null,null,null,null,null,null,null,null,null,null,null,null,null,null,null,null,null,null,null,null,null,null,null,{"$f":"INT(S15*Y15)","v":0},null,null,null,null,null,null,"値引"]
[null,null,null,null,null,null,null,null,null,null,null,null,null,null,null,null,null,null,null,null,null,null,null,null,null,null,null,null,{"$f":"INT(S16*Y16)","v":0},null,null,null,null,null,null,"税抜き額"]
[null,null,null,null,null,null,null,null,null,null,null,null,null,null,null,null,null,null,null,null,null,null,null,null,null,null,null,null,{"$f":"INT(S17*Y17)","v":0},null,null,null,null,null,"消費税(8%対象)",null,null,null,null,null,{"$f":"SUM(AO16*8%)","v":0}]
[null,null,null,null,null,null,null,null,null,null,null,null,null,null,null,null,null,null,null,null,null,null,null,null,null,null,null,null,{"$f":"INT(S18*Y18)","v":0},null,null,null,null,null,null,"請求金額",null,null,null,null,{"$f":"AO16+AO17","v":0}]
[]
["勘 定 科 目",null,null,null,"消耗品費",null,null,null,null,null,null,"立替先名",null,null,null,"立替金(税込)",null,null,null,null,null,"支払年月日",null,null,null,null,null,null,null,null,null,null,null,null,"＜記事＞"]
[null,null,null,null,null,null,null,null,null,null,null,null,null,null,null,null,null,null,null,null,null,null,null,null,"年",null,"月",null,"日"]
["当月請求額",null,null,null,null,null,null,null,null,null,null,null,null,null,null,null,null,null,null,null,null,2,0]
["前月繰越額"]
["合計",null,null,null,null,null,null,null,null,null,null,null,null,null,null,null,null,null,null,null,null,"支払区分"]
["値引"]
["相殺",null,null,null,null,null,null,null,null,null,null,null,null,null,null,null,null,null,null,null,null,"支　　払　　内　　訳"]
["翌月繰越額",null,null,null,null,null,null,null,null,null,null,null,null,null,null,null,null,null,null,null,null,"現　金",null,null,null,null,"％"]
["支払額",null,null,null,null,null,null,null,null,null,null,null,null,null,null,null,null,null,null,null,null,"手　形",null,null,null,null,"％"]
["安全協力費(　)",null,null,null,null,null,null,null,null,null,null,null,null,null,null,null,null,null,null,null,null,"サイト",null,null,null,null,"日","期日"," 　年　　月　　日"]
["差引支払額",null,null,null,null,null,null,null,null,null,null,"計",null,null,null,null,null,null,null,null,null,"合　　計"]
[]
["社　長",null,null,null,"役　　員",null,null,null,null,null,"経理部長",null,null,null,"担当役員",null,null,null,"予算管理",null,null,"部門長",null,null,"担当部長",null,null,"担当課長",null,null,"担 当 者",null,null,null,null,null,null,"仕　訳",null,null,"検　算",null,null,"受　付"]
[]
[]
[]
[]
["コード",null,null,{"$f":"CONCATENATE(D4,E4,F4,G4,H4,I5,J5)","v":""},null,null,null,{"$f":"CONCATENATE(L5,M5,N5,O5,IF(P5=\"\",0,P5),Q5,R5,S5)","v":"200"},null,null,null,null,{"$f":"CONCATENATE(C7,D7,ASC(UPPER(E7)),F7,G7,H7,J7,L8,M8)","v":""}]

{"sheet":"内訳－入力","index":2,"n_rows":33,"n_cols":46,"rows_kept":33,"cut":false,"hidden":false,"merged":[[28,34,28,39],[1,11,1,18],[2,34,2,37],[5,4,6,4],[5,6,6,6],[25,35,25,38],[26,35,26,38],[27,35,27,38],[2,0,3,1],[5,0,6,1],[5,8,6,8],[2,3,3,3],[2,4,3,4],[2,5,3,5],[8,0,8,3],[9,0,9,3],[11,28,11,33],[11,24,11,27],[11,22,11,23],[11,18,11,21],[8,4,9,18],[7,33,7,44],[11,2,11,17],[8,36,8,45],[2,38,2,45],[3,33,3,45],[4,33,5,45],[6,33,6,45],[5,3,6,3],[5,7,6,7],[5,9,6,9],[2,6,3,6],[2,7,3,7],[5,2,6,2],[5,5,6,5],[12,18,12,21],[13,18,13,21],[14,18,14,21],[18,18,18,21],[15,18,15,21],[16,22,16,23],[17,22,17,23],[16,18,16,21],[17,18,17,21],[12,22,12,23],[18,22,18,23],[13,22,13,23],[14,22,14,23],[15,22,15,23],[26,24,26,27],[19,24,19,27],[20,24,20,27],[21,24,21,27],[22,24,22,27],[23,24,23,27],[26,22,26,23],[23,18,23,21],[24,18,24,21],[23,22,23,23],[24,22,24,23],[25,22,25,23],[25,18,25,21],[26,18,26,21],[19,18,19,21],[20,18,20,21],[21,18,21,21],[22,18,22,21],[19,22,19,23],[20,22,20,23],[21,22,21,23],[22,22,22,23],[25,28,25,33],[18,28,18,33],[19,28,19,33],[20,28,20,33],[21,28,21,33],[25,40,25,45],[17,24,17,27],[18,24,18,27],[12,24,12,27],[22,28,22,33],[23,28,23,33],[24,28,24,33],[12,28,12,33],[13,28,13,33],[14,28,14,33],[15,28,15,33],[16,28,16,33],[17,28,17,33],[13,24,13,27],[14,24,14,27],[15,24,15,27],[16,24,16,27],[24,24,24,27],[25,24,25,27],[8,33,8,35],[9,33,9,35],[9,37,9,45],[32,3,32,6],[32,7,32,10],[32,12,32,15],[29,40,29,45],[29,35,29,38],[27,22,27,23],[28,22,28,23],[28,28,28,33],[27,24,27,27],[28,24,28,27],[29,24,29,27],[29,22,29,23],[27,18,27,21],[28,18,28,21],[29,18,29,21],[26,40,26,45],[27,40,27,45],[28,40,28,45],[26,28,26,33],[27,28,27,33],[29,28,29,33]]}
[null,null,null,null,null,null,null,null,null,null,null,null,null,null,null,null,null,null,null,null,"請　求　内　訳　書",null,null,null,null,null,null,null,null,null,null,null,null,null,null,null,null,null,null,null,null,null,null,null,null,{"$f":"'表紙－入力'!AT1","v":"様式2014.04"}]
[null,null,null,null,null,null,null,null,null,null,null,"請 求 年 月 日",null,null,null,null,null,null,null,null,null,null,null,null,null,null,null,null,null,null,null,null,null," 請求者（住所・氏名）"]
["取引先\nコード",null,null,{"$f":"'表紙－入力'!$D$4","v":0},{"$f":"'表紙－入力'!$E$4","v":0},{"$f":"'表紙－入力'!$F$4","v":0},{"$f":"'表紙－入力'!$G$4","v":0},{"$f":"'表紙－入力'!$H$4","v":0},null,null,null,null,null,null,"年",null,"月",null,"日",null,null,null,null,null,null,null,null,null,null,null,null,null,null,"〒"]
[null,null,null,null,null,null,null,null,null,null,null,2,0,{"$f":"'表紙－入力'!$N$5","v":0},{"$f":"'表紙－入力'!$O$5","v":0},{"$f":"'表紙－入力'!$P$5","v":0},{"$f":"'表紙－入力'!$Q$5","v":0},{"$f":"'表紙－入力'!$R$5","v":0},{"$f":"'表紙－入力'!$S$5","v":0}]
[]
["工事№",null,{"$f":"IF(ISBLANK('表紙－入力'!C$7),\"\",'表紙－入力'!C$7)","v":""},{"$f":"IF(ISBLANK('表紙－入力'!D$7),\"\",'表紙－入力'!D$7)","v":""},{"$f":"IF(ISBLANK('表紙－入力'!E$7),\"\",'表紙－入力'!E$7)","v":""},{"$f":"IF(ISBLANK('表紙－入力'!F$7),\"\",'表紙－入力'!F$7)","v":""},{"$f":"IF(ISBLANK('表紙－入力'!G$7),\"\",'表紙－入力'!G$7)","v":""},{"$f":"IF(ISBLANK('表紙－入力'!H$7),\"\",'表紙－入力'!H$7)","v":""},"－",{"$f":"'表紙－入力'!J$7","v":0}]
[null,null,null,null,null,null,null,null,null,null,null,{"$f":"IF(ISBLANK('表紙－入力'!L8),\"\",'表紙－入力'!L8)","v":""},{"$f":"IF(ISBLANK('表紙－入力'!M8),\"\",'表紙－入力'!M8)","v":""}]
[]
["工事略称又は",null,null,null,{"$f":"'表紙－入力'!$E$10","v":0},null,null,null,null,null,null,null,null,null,null,null,null,null,null,null,null,null,null,null,null,null,null,null,null,null,null,null,null,"電話番号"]
["部門・船舶名",null,null,null,null,null,null,null,null,null,null,null,null,null,null,null,null,null,null,null,null,null,null,null,null,null,null,null,null,null,null,null,null,"登録番号",null,null,"Ｔ"]
[]
["月","日","主 要 工 種 ・ 品 名 等",null,null,null,null,null,null,null,null,null,null,null,null,null,null,null,"数　量",null,null,null,"単位",null,"単　価",null,null,null,"金　　額"]
[null,null,null,null,null,null,null,null,null,null,null,null,null,null,null,null,null,null,null,null,null,null,null,null,null,null,null,null,{"$f":"INT(S13*Y13)","v":0}]
[null,null,null,null,null,null,null,null,null,null,null,null,null,null,null,null,null,null,null,null,null,null,null,null,null,null,null,null,{"$f":"INT(S14*Y14)","v":0}]
[null,null,null,null,null,null,null,null,null,null,null,null,null,null,null,null,null,null,null,null,null,null,null,null,null,null,null,null,0]
[null,null,null,null,null,null,null,null,null,null,null,null,null,null,null,null,null,null,null,null,null,null,null,null,null,null,null,null,0]
[null,null,null,null,null,null,null,null,null,null,null,null,null,null,null,null,null,null,null,null,null,null,null,null,null,null,null,null,0]
[null,null,null,null,null,null,null,null,null,null,null,null,null,null,null,null,null,null,null,null,null,null,null,null,null,null,null,null,0]
[null,null,null,null,null,null,null,null,null,null,null,null,null,null,null,null,null,null,null,null,null,null,null,null,null,null,null,null,0]
[null,null,null,null,null,null,null,null,null,null,null,null,null,null,null,null,null,null,null,null,null,null,null,null,null,null,null,null,0]
[null,null,null,null,null,null,null,null,null,null,null,null,null,null,null,null,null,null,null,null,null,null,null,null,null,null,null,null,0]
[null,null,null,null,null,null,null,null,null,null,null,null,null,null,null,null,null,null,null,null,null,null,null,null,null,null,null,null,0]
[null,null,null,null,null,null,null,null,null,null,null,null,null,null,null,null,null,null,null,null,null,null,null,null,null,null,null,null,0]
[null,null,null,null,null,null,null,null,null,null,null,null,null,null,null,null,null,null,null,null,null,null,null,null,null,null,null,null,0]
[null,null,null,null,null,null,null,null,null,null,null,null,null,null,null,null,null,null,null,null,null,null,null,null,null,null,null,null,0]
[null,null,null,null,null,null,null,null,null,null,null,null,null,null,null,null,null,null,null,null,null,null,null,null,null,null,null,null,0,null,null,null,null,null,null,"税抜き小計",null,null,null,null,{"$f":"SUM(AC13:AH30)","v":0}]
[null,null,null,null,null,null,null,null,null,null,null,null,null,null,null,null,null,null,null,null,null,null,null,null,null,null,null,null,0,null,null,null,null,null,null,"値引"]
[null,null,null,null,null,null,null,null,null,null,null,null,null,null,null,null,null,null,null,null,null,null,null,null,null,null,null,null,0,null,null,null,null,null,null,"税抜き額"]
[null,null,null,null,null,null,null,null,null,null,null,null,null,null,null,null,null,null,null,null,null,null,null,null,null,null,null,null,0,null,null,null,null,null,"消費税(8％対象)",null,null,null,null,null,{"$f":"INT(AO28*0.08)","v":0}]
[null,null,null,null,null,null,null,null,null,null,null,null,null,null,null,null,null,null,null,null,null,null,null,null,null,null,null,null,{"$f":"INT(S30*Y30)","v":0},null,null,null,null,null,null,"合計",null,null,null,null,{"$f":"AO28+AO29","v":0}]
[]
[null,null,null,null,null,null,null,null,null,null,null,null,null,null,null,null,null,null,null,null,null,null,"株式会社  セ ノ オ"]
["コード",null,null,{"$f":"CONCATENATE(D3,E3,F3,G3,H3,I4,J4)","v":"00000"},null,null,null,{"$f":"CONCATENATE(L4,M4,N4,O4,IF(P4=\"\",0,P4),Q4,R4,S4)","v":"20000000"},null,null,null,null,{"$f":"CONCATENATE(C6,D6,ASC(UPPER(E6)),F6,G6,H6,J6,L7,M7)","v":"0"}]

{"sheet":"表紙－手書き用","index":3,"n_rows":37,"n_cols":46,"rows_kept":37,"cut":false,"hidden":false,"merged":[[31,43,31,45],[31,0,31,2],[31,4,31,8],[31,10,31,12],[31,14,31,16],[31,18,31,20],[31,21,31,23],[31,40,31,42],[31,24,31,26],[31,27,31,29],[31,30,31,32],[31,37,31,39],[26,21,26,23],[27,21,27,23],[28,21,28,23],[13,35,13,38],[22,0,22,3],[23,0,23,3],[19,21,19,28],[17,35,17,38],[15,35,15,38],[28,28,28,32],[14,35,14,38],[16,34,16,39],[29,0,29,3],[2,11,2,18],[10,0,10,3],[6,0,7,1],[6,8,7,8],[12,2,12,17],[9,0,9,3],[29,11,29,14],[21,0,21,3],[25,0,25,3],[26,0,26,3],[27,0,27,3],[28,0,28,3],[12,18,12,21],[23,21,24,24],[24,0,24,3],[8,23,8,31],[9,23,9,31],[12,28,12,33],[12,22,12,23],[12,24,12,27],[8,33,8,44],[9,36,9,45],[9,33,9,35],[10,33,10,35],[10,37,10,45],[2,20,3,22],[4,20,4,22],[3,0,4,1],[19,11,19,14],[19,15,19,19],[19,0,20,3],[6,20,7,22],[5,20,5,22],[8,20,9,22],[7,33,7,45],[29,21,29,26],[25,21,25,32],[3,3,4,3],[3,4,4,4],[3,5,4,5],[3,6,4,6],[3,7,4,7],[4,30,4,31],[2,31,3,31],[5,23,5,31],[6,23,7,31],[4,23,4,24],[4,28,4,29],[2,26,3,26],[5,33,6,45],[2,27,3,30],[4,25,4,26],[3,34,3,37],[3,38,3,45],[4,33,4,45],[2,23,3,25]]}
[null,null,null,"株式会社 セノオ　御中",null,null,null,null,null,null,null,null,null,null,null,null,null,"請　　求　　書",null,null,null,null,null,null,null,null,"（　契 約 外 用　）",null,null,null,null,null,null,null,null,null,null,null,null,null,null,null,null,null,null,{"$f":"'表紙－入力'!AT1","v":"様式2014.04"}]
[]
["下記の通り請求致します。",null,null,null,null,null,null,null,null,null,null,"請 求 年 月 日",null,null,null,null,null,null,null,null,"振込口座",null,null,null,null,null,"銀行",null,null,null,null,"店",null," 請求者（住所・氏名）"]
["取引先\nコード",null,null,null,null,null,null,null,null,null,null,null,null,null,"年",null,"月",null,"日",null,null,null,null,null,null,null,null,null,null,null,null,null,null,"〒"]
[null,null,null,null,null,null,null,null,null,null,null,2,0,null,null,null,null,null,null,null,"種　　別",null,null,"当座",null,null,null,null,"普通"]
[null,null,null,null,null,null,null,null,null,null,null,"（日付は必ず20日でお願いします）",null,null,null,null,null,null,null,null,"口座番号"]
["工事№",null,null,null,null,null,null,null,"－",null,null,null,null,null,null,null,null,null,null,null,"フリガナ"]
[]
[null,null,null,null,null,null,null,null,null,null,null,null,null,null,null,null,null,null,null,null,"名　　義",null,null,null,null,null,null,null,null,null,null,null,null,null,null,null,null,null,null,null,null,null,null,null,null,"印"]
["工事略称又は",null,null,null,null,null,null,null,null,null,null,null,null,null,null,null,null,null,null,null,null,null,null,null,null,null,null,null,null,null,null,null,null," 電話番号"]
["部門・船舶名",null,null,null,null,null,null,null,null,null,null,null,null,null,null,null,null,null,null,null,null,null,null,null,null,null,null,null,null,null,null,null,null," 登録番号",null,null,"T"]
[]
["月","日","主 要 工 種 ・ 品 名 等",null,null,null,null,null,null,null,null,null,null,null,null,null,null,null,"数　量",null,null,null,"単位",null,"単　価",null,null,null,"金　　額"]
[null,null,null,null,null,null,null,null,null,null,null,null,null,null,null,null,null,null,null,null,null,null,null,null,null,null,null,null,null,null,null,null,null,null,null,"税抜き小計"]
[null,null,null,null,null,null,null,null,null,null,null,null,null,null,null,null,null,null,null,null,null,null,null,null,null,null,null,null,null,null,null,null,null,null,null,"値引"]
[null,null,null,null,null,null,null,null,null,null,null,null,null,null,null,null,null,null,null,null,null,null,null,null,null,null,null,null,null,null,null,null,null,null,null,"税抜き額"]
[null,null,null,null,null,null,null,null,null,null,null,null,null,null,null,null,null,null,null,null,null,null,null,null,null,null,null,null,null,null,null,null,null,null,"消費税(8%対象)"]
[null,null,null,null,null,null,null,null,null,null,null,null,null,null,null,null,null,null,null,null,null,null,null,null,null,null,null,null,null,null,null,null,null,null,null,"請求金額"]
[]
["勘 定 科 目",null,null,null,null,null,null,null,null,null,null,"立替先名",null,null,null,"立替金(税込)",null,null,null,null,null,"支払年月日",null,null,null,null,null,null,null,null,null,null,null,null,"＜記事＞"]
[null,null,null,null,null,null,null,null,null,null,null,null,null,null,null,null,null,null,null,null,null,null,null,null,"年",null,"月",null,"日"]
["当月請求額",null,null,null,null,null,null,null,null,null,null,null,null,null,null,null,null,null,null,null,null,2,0]
["前月繰越額"]
["合計",null,null,null,null,null,null,null,null,null,null,null,null,null,null,null,null,null,null,null,null,"支払区分"]
["値引"]
["相殺",null,null,null,null,null,null,null,null,null,null,null,null,null,null,null,null,null,null,null,null,"支　　払　　内　　訳"]
["翌月繰越額",null,null,null,null,null,null,null,null,null,null,null,null,null,null,null,null,null,null,null,null,"現　金",null,null,null,null,"％"]
["支払額",null,null,null,null,null,null,null,null,null,null,null,null,null,null,null,null,null,null,null,null,"手　形",null,null,null,null,"％"]
["安全協力費( )",null,null,null,null,null,null,null,null,null,null,null,null,null,null,null,null,null,null,null,null,"サイト",null,null,null,null,"日","期日"," 　年　　月　　日"]
["差引支払額",null,null,null,null,null,null,null,null,null,null,"計",null,null,null,null,null,null,null,null,null,"合　　計"]
[]
["社　長",null,null,null,"役　　員",null,null,null,null,null,"経理部長",null,null,null,"担当役員",null,null,null,"予算管理",null,null,"部門長",null,null,"担当部長",null,null,"担当課長",null,null,"担 当 者",null,null,null,null,null,null,"仕　訳",null,null,"検　算",null,null,"受　付"]
[]
[]
[]
[]
["コード"]

{"sheet":"内訳－手書き用","index":4,"n_rows":33,"n_cols":46,"rows_kept":33,"cut":false,"hidden":false,"merged":[[1,11,1,18],[2,0,3,1],[5,0,6,1],[5,8,6,8],[2,3,3,3],[2,4,3,4],[2,5,3,5],[2,6,3,6],[2,7,3,7],[8,0,8,3],[29,35,29,38],[25,35,25,38],[26,35,26,38],[27,35,27,38],[9,0,9,3],[11,28,11,33],[11,24,11,27],[11,22,11,23],[11,18,11,21],[11,2,11,17],[8,33,8,35],[9,33,9,35],[9,37,9,45],[28,34,28,39],[7,33,7,44],[8,36,8,45],[2,34,2,37],[2,38,2,45],[3,33,3,45],[4,33,5,45],[6,33,6,45]]}
[null,null,null,null,null,null,null,null,null,null,null,null,null,null,null,null,null,null,null,null,"請　求　内　訳　書",null,null,null,null,null,null,null,null,null,null,null,null,null,null,null,null,null,null,null,null,null,null,null,null,{"$f":"'表紙－入力'!AT1","v":"様式2014.04"}]
[null,null,null,null,null,null,null,null,null,null,null,"請 求 年 月 日",null,null,null,null,null,null,null,null,null,null,null,null,null,null,null,null,null,null,null,null,null," 請求者（住所・氏名）"]
["取引先\nコード",null,null,null,null,null,null,null,null,null,null,null,null,null,"年",null,"月",null,"日",null,null,null,null,null,null,null,null,null,null,null,null,null,null,"〒"]
[null,null,null,null,null,null,null,null,null,null,null,2,0]
[]
["工事№",null,null,null,null,null,null,null,"－"]
[]
[]
["工事略称又は",null,null,null,null,null,null,null,null,null,null,null,null,null,null,null,null,null,null,null,null,null,null,null,null,null,null,null,null,null,null,null,null,"電話番号"]
["部門・船舶名",null,null,null,null,null,null,null,null,null,null,null,null,null,null,null,null,null,null,null,null,null,null,null,null,null,null,null,null,null,null,null,null,"登録番号",null,null,"Ｔ"]
[]
["月","日","主 要 工 種 ・ 品 名 等",null,null,null,null,null,null,null,null,null,null,null,null,null,null,null,"数　量",null,null,null,"単位",null,"単　価",null,null,null,"金　　額"]
[]
[]
[]
[]
[]
[]
[]
[]
[]
[]
[]
[]
[]
[null,null,null,null,null,null,null,null,null,null,null,null,null,null,null,null,null,null,null,null,null,null,null,null,null,null,null,null,null,null,null,null,null,null,null,"税抜き小計"]
[null,null,null,null,null,null,null,null,null,null,null,null,null,null,null,null,null,null,null,null,null,null,null,null,null,null,null,null,null,null,null,null,null,null,null,"値引"]
[null,null,null,null,null,null,null,null,null,null,null,null,null,null,null,null,null,null,null,null,null,null,null,null,null,null,null,null,null,null,null,null,null,null,null,"税抜き額"]
[null,null,null,null,null,null,null,null,null,null,null,null,null,null,null,null,null,null,null,null,null,null,null,null,null,null,null,null,null,null,null,null,null,null,"消費税(8%対象)"]
[null,null,null,null,null,null,null,null,null,null,null,null,null,null,null,null,null,null,null,null,null,null,null,null,null,null,null,null,null,null,null,null,null,null,null,"合計"]
[]
[null,null,null,null,null,null,null,null,null,null,null,null,null,null,null,null,null,null,null,null,null,null,"株式会社  セ ノ オ"]
["コード"]